[Event "*** Titled Tuesday Blitz"]
[Site "Chess.com"]
[Date "2020.04.07"]
[Round "2"]
[White "HarutyunianTigranK"]
[Black "deBaller"]
[Result "1-0"]
[WhiteElo "2696"]
[BlackElo "2344"]
[TimeControl "180+1"]
[EndTime "13:18:25 PDT"]
[Termination "HarutyunianTigranK won by resignation"]

1. Nf3 {[%clk 0:03:00.9]} 1... Nf6 {[%clk 0:02:59.8]} 2. c4 {[%clk 0:03:00.9]}
2... b6 {[%clk 0:02:59.4]} 3. Nc3 {[%clk 0:03:01.1]} 3... Bb7 {[%clk 0:02:59.8]}
4. d4 {[%clk 0:03:00.7]} 4... g6 {[%clk 0:02:58.6]} 5. d5 {[%clk 0:02:55.6]}
5... d6 {[%clk 0:02:57.6]} 6. e4 {[%clk 0:02:55.7]} 6... Nbd7 {[%clk 0:02:57.3]}
7. Bd3 {[%clk 0:02:50.9]} 7... Bg7 {[%clk 0:02:51.7]} 8. O-O {[%clk 0:02:50.7]}
8... O-O {[%clk 0:02:50.1]} 9. Re1 {[%clk 0:02:51.5]} 9... e5 {[%clk 0:02:49.2]}
10. Rb1 {[%clk 0:02:16.5]} 10... a5 {[%clk 0:02:48.1]} 11. a3 {[%clk 0:02:14.5]}
11... Bc8 {[%clk 0:02:37.4]} 12. b4 {[%clk 0:02:14.1]} 12... Nh5 {[%clk
0:02:35.7]} 13. Bf1 {[%clk 0:02:01.8]} 13... f5 {[%clk 0:02:18.3]} 14. exf5
{[%clk 0:02:01.4]} 14... gxf5 {[%clk 0:02:15.9]} 15. Ng5 {[%clk 0:01:51.2]}
15... Ndf6 {[%clk 0:02:07.7]} 16. Be2 {[%clk 0:01:41.4]} 16... Nf4 {[%clk
0:02:04.9]} 17. Bxf4 {[%clk 0:01:40.8]} 17... exf4 {[%clk 0:02:05.8]} 18. Bf3
{[%clk 0:01:38]} 18... axb4 {[%clk 0:01:58.6]} 19. axb4 {[%clk 0:01:36.5]} 19...
Ne4 {[%clk 0:01:48.1]} 20. Ncxe4 {[%clk 0:01:25.6]} 20... fxe4 {[%clk
0:01:47.8]} 21. Nxe4 {[%clk 0:01:25.3]} 21... Bf5 {[%clk 0:01:47]} 22. Rc1
{[%clk 0:01:15.7]} 22... Re8 {[%clk 0:01:19.4]} 23. h3 {[%clk 0:01:15]} 23...
Qd7 {[%clk 0:01:16.8]} 24. c5 {[%clk 0:01:13]} 24... bxc5 {[%clk 0:01:11.9]} 25.
bxc5 {[%clk 0:01:12.6]} 25... Ra4 {[%clk 0:00:53.5]} 26. c6 {[%clk 0:01:10.6]}
26... Raxe4 {[%clk 0:00:45]} 27. Bxe4 {[%clk 0:00:58.5]} 27... Qf7 {[%clk
0:00:43.5]} 28. Bxf5 {[%clk 0:00:56.9]} 28... Rxe1+ {[%clk 0:00:43.2]} 29. Qxe1
{[%clk 0:00:57.8]} 29... Qxf5 {[%clk 0:00:44.1]} 30. Qe8+ {[%clk 0:00:51.4]}
30... Bf8 {[%clk 0:00:42.9]} 31. Qd7 {[%clk 0:00:41.7]} 31... Qxd5 {[%clk
0:00:39]} 32. Qxc7 {[%clk 0:00:41]} 32... f3 {[%clk 0:00:39.5]} 33. Qd7 {[%clk
0:00:39.6]} 33... Qg5 {[%clk 0:00:30.6]} 34. Qg4 {[%clk 0:00:37.7]} 1-0

[Event "*** Titled Tuesday Blitz"]
[Site "Chess.com"]
[Date "2020.04.07"]
[Round "2"]
[White "levallem"]
[Black "googlegoom"]
[Result "1/2-1/2"]
[WhiteElo "2087"]
[BlackElo "2403"]
[TimeControl "180+1"]
[EndTime "13:18:25 PDT"]
[Termination "Game drawn by agreement"]

1. d4 {[%clk 0:03:00.9]} 1... d5 {[%clk 0:02:59.9]} 2. c4 {[%clk 0:02:59.4]}
2... c6 {[%clk 0:03:00.2]} 3. cxd5 {[%clk 0:02:59.1]} 3... cxd5 {[%clk
0:03:00.3]} 4. Nc3 {[%clk 0:03:00]} 4... Nf6 {[%clk 0:03:00.6]} 5. Nf3 {[%clk
0:03:00.5]} 5... Nc6 {[%clk 0:03:01.1]} 6. Bf4 {[%clk 0:03:00.4]} 6... e6 {[%clk
0:03:01.6]} 7. e3 {[%clk 0:03:00.1]} 7... Be7 {[%clk 0:03:01.9]} 8. Bb5 {[%clk
0:02:55.2]} 8... Bd7 {[%clk 0:03:02]} 9. O-O {[%clk 0:02:55.2]} 9... O-O {[%clk
0:03:00.9]} 10. Rc1 {[%clk 0:02:55.2]} 10... a6 {[%clk 0:03:01]} 11. Bxc6 {[%clk
0:02:54.8]} 11... Bxc6 {[%clk 0:02:59.7]} 12. Ne5 {[%clk 0:02:55]} 12... Rc8
{[%clk 0:02:59.9]} 13. Nxc6 {[%clk 0:02:35]} 13... Rxc6 {[%clk 0:02:59.7]} 14.
Na4 {[%clk 0:02:28.2]} 14... Rxc1 {[%clk 0:02:42.6]} 15. Qxc1 {[%clk 0:02:29.1]}
15... Qd7 {[%clk 0:02:38.6]} 16. Nc5 {[%clk 0:02:12]} 16... Qb5 {[%clk
0:02:22.7]} 17. Nb3 {[%clk 0:01:34.7]} 17... Qd7 {[%clk 0:02:17.7]} 18. Qc7
{[%clk 0:01:19.1]} 18... Qxc7 {[%clk 0:02:16]} 19. Bxc7 {[%clk 0:01:20]} 19...
Rc8 {[%clk 0:02:16.5]} 20. Rc1 {[%clk 0:01:15.6]} 20... Ne8 {[%clk 0:02:15.1]}
21. Bb6 {[%clk 0:01:09.5]} 21... Rxc1+ {[%clk 0:02:16]} 22. Nxc1 {[%clk
0:01:09.8]} 22... Nd6 {[%clk 0:02:15.8]} 23. Bc5 {[%clk 0:01:02.4]} 23... Kf8
{[%clk 0:02:10.5]} 24. Nd3 {[%clk 0:00:59.6]} 24... Ke8 {[%clk 0:02:07.1]} 25.
Kf1 {[%clk 0:00:54.3]} 25... f6 {[%clk 0:02:05.8]} 26. Ke2 {[%clk 0:00:51]}
26... Kd7 {[%clk 0:02:06.1]} 27. b3 {[%clk 0:00:45.4]} 27... h5 {[%clk
0:02:02.8]} 28. f3 {[%clk 0:00:42.7]} 28... Bd8 {[%clk 0:01:36.9]} 29. Nf4
{[%clk 0:00:40.2]} 29... h4 {[%clk 0:01:36.3]} 30. Ng6 {[%clk 0:00:34.8]} 30...
f5 {[%clk 0:01:31.8]} 31. Ne5+ {[%clk 0:00:33.6]} 31... Kc7 {[%clk 0:01:30.3]}
32. Bxd6+ {[%clk 0:00:31.9]} 32... Kxd6 {[%clk 0:01:29.6]} 33. Nf7+ {[%clk
0:00:32.5]} 33... Ke7 {[%clk 0:01:30.1]} 34. Nxd8 {[%clk 0:00:32]} 34... Kxd8
{[%clk 0:01:31]} 35. e4 {[%clk 0:00:30.7]} 35... Ke7 {[%clk 0:01:21.4]} 36. Ke3
{[%clk 0:00:27.1]} 36... g5 {[%clk 0:01:17.5]} 37. exf5 {[%clk 0:00:20.5]} 37...
exf5 {[%clk 0:01:17.3]} 38. f4 {[%clk 0:00:20.8]} 38... g4 {[%clk 0:01:14.7]}
39. g3 {[%clk 0:00:20.4]} 39... h3 {[%clk 0:01:12.6]} 40. Kd3 {[%clk 0:00:19.9]}
40... Kd6 {[%clk 0:01:13.1]} 41. Kc3 {[%clk 0:00:20.2]} 41... Kc6 {[%clk
0:01:13.7]} 42. Kb4 {[%clk 0:00:20.4]} 42... Kb6 {[%clk 0:01:14.3]} 43. a4
{[%clk 0:00:20.2]} 43... a5+ {[%clk 0:01:04.7]} 44. Kc3 {[%clk 0:00:19.7]}
1/2-1/2

[Event "*** Titled Tuesday Blitz"]
[Site "Chess.com"]
[Date "2020.04.07"]
[Round "2"]
[White "JustKid"]
[Black "penguingm1"]
[Result "0-1"]
[WhiteElo "2582"]
[BlackElo "2897"]
[TimeControl "180+1"]
[EndTime "13:18:27 PDT"]
[Termination "penguingm1 won by resignation"]

1. d4 {[%clk 0:03:00.9]} 1... d5 {[%clk 0:02:59.9]} 2. Bf4 {[%clk 0:03:01.3]}
2... Nf6 {[%clk 0:02:59.4]} 3. e3 {[%clk 0:03:01.8]} 3... e6 {[%clk 0:03:00]} 4.
Nf3 {[%clk 0:03:02.3]} 4... Bd6 {[%clk 0:03:00.7]} 5. Bg3 {[%clk 0:03:03]} 5...
c5 {[%clk 0:03:01]} 6. c3 {[%clk 0:02:43.4]} 6... O-O {[%clk 0:02:57.7]} 7. Nbd2
{[%clk 0:02:42.4]} 7... Qc7 {[%clk 0:02:57.6]} 8. Rc1 {[%clk 0:02:42.5]} 8... b6
{[%clk 0:02:53.7]} 9. c4 {[%clk 0:02:33.5]} 9... Bb7 {[%clk 0:02:43.8]} 10. Be2
{[%clk 0:02:29.2]} 10... Bxg3 {[%clk 0:02:32.5]} 11. hxg3 {[%clk 0:02:30.1]}
11... dxc4 {[%clk 0:02:32.9]} 12. Nxc4 {[%clk 0:02:20.7]} 12... Rd8 {[%clk
0:02:27.1]} 13. Nce5 {[%clk 0:02:14]} 13... Nbd7 {[%clk 0:02:08.9]} 14. Qc2
{[%clk 0:02:06.3]} 14... Rac8 {[%clk 0:01:57.3]} 15. Bd3 {[%clk 0:01:56.6]}
15... h6 {[%clk 0:01:50.6]} 16. g4 {[%clk 0:01:03]} 16... Bxf3 {[%clk
0:01:28.1]} 17. Nxf3 {[%clk 0:00:45.2]} 17... Nxg4 {[%clk 0:01:28.1]} 18. Rh4
{[%clk 0:00:37]} 18... Ndf6 {[%clk 0:01:10.7]} 19. Qe2 {[%clk 0:00:31.9]} 19...
Qd6 {[%clk 0:01:01.2]} 20. Nd2 {[%clk 0:00:25.9]} 20... cxd4 {[%clk 0:00:54.8]}
21. Rxc8 {[%clk 0:00:22.3]} 21... Rxc8 {[%clk 0:00:54.9]} 22. Nc4 {[%clk
0:00:19.4]} 22... Qb4+ {[%clk 0:00:53.3]} 23. Kf1 {[%clk 0:00:19.4]} 23... b5
{[%clk 0:00:46]} 24. a3 {[%clk 0:00:19.6]} 24... Qb3 {[%clk 0:00:36.7]} 25. f3
{[%clk 0:00:06.2]} 25... bxc4 {[%clk 0:00:29.8]} 26. Bc2 {[%clk 0:00:06.7]}
26... Nxe3+ {[%clk 0:00:28.8]} 0-1

[Event "*** Titled Tuesday Blitz"]
[Site "Chess.com"]
[Date "2020.04.07"]
[Round "2"]
[White "alexwinter25"]
[Black "FelixJoseYnojosa"]
[Result "0-1"]
[WhiteElo "2331"]
[BlackElo "2633"]
[TimeControl "180+1"]
[EndTime "13:18:28 PDT"]
[Termination "FelixJoseYnojosa won on time"]

1. e4 {[%clk 0:03:00.9]} 1... c5 {[%clk 0:02:59.1]} 2. Nf3 {[%clk 0:03:01]} 2...
Nc6 {[%clk 0:02:59.8]} 3. d4 {[%clk 0:03:01.3]} 3... cxd4 {[%clk 0:03:00.1]} 4.
c3 {[%clk 0:03:01.9]} 4... Nf6 {[%clk 0:03:00.2]} 5. e5 {[%clk 0:03:01.7]} 5...
Nd5 {[%clk 0:03:00.7]} 6. Bc4 {[%clk 0:03:01.9]} 6... e6 {[%clk 0:03:00.9]} 7.
Bxd5 {[%clk 0:03:00.1]} 7... exd5 {[%clk 0:03:01.1]} 8. cxd4 {[%clk 0:03:00.4]}
8... d6 {[%clk 0:03:01.7]} 9. O-O {[%clk 0:03:00.3]} 9... Bg4 {[%clk 0:03:01.8]}
10. exd6 {[%clk 0:03:00.1]} 10... Qxd6 {[%clk 0:03:00.6]} 11. Be3 {[%clk
0:02:57.6]} 11... Be7 {[%clk 0:03:00.6]} 12. h3 {[%clk 0:02:58.1]} 12... Bh5
{[%clk 0:03:00.5]} 13. Nbd2 {[%clk 0:02:57.7]} 13... O-O {[%clk 0:03:00.2]} 14.
Qb3 {[%clk 0:02:58.1]} 14... Bf6 {[%clk 0:02:58.5]} 15. Rac1 {[%clk 0:02:51.8]}
15... b6 {[%clk 0:02:52.6]} 16. Rfe1 {[%clk 0:02:31.5]} 16... h6 {[%clk
0:02:47.6]} 17. a3 {[%clk 0:02:18]} 17... Rfe8 {[%clk 0:02:47.4]} 18. Qa4 {[%clk
0:02:15.1]} 18... Re6 {[%clk 0:02:46.8]} 19. b4 {[%clk 0:02:11.2]} 19... Rae8
{[%clk 0:02:46.7]} 20. Ne5 {[%clk 0:02:05.9]} 20... Nxe5 {[%clk 0:02:40.2]} 21.
dxe5 {[%clk 0:02:06.8]} 21... Bxe5 {[%clk 0:02:33.2]} 22. Qxa7 {[%clk
0:02:02.6]} 22... d4 {[%clk 0:02:15.4]} 23. Nc4 {[%clk 0:01:49.8]} 23... Bh2+
{[%clk 0:02:08.9]} 24. Kh1 {[%clk 0:01:43.4]} 24... Qb8 {[%clk 0:02:03.9]} 25.
Qxb8 {[%clk 0:01:35]} 25... Bxb8 {[%clk 0:02:04.3]} 26. Bd2 {[%clk 0:01:31.9]}
26... Be2 {[%clk 0:02:04.7]} 27. Nb2 {[%clk 0:01:16.9]} 27... d3 {[%clk
0:02:05]} 28. Nc4 {[%clk 0:01:09]} 28... b5 {[%clk 0:02:03.9]} 29. Ne3 {[%clk
0:01:09]} 29... Be5 {[%clk 0:02:01.3]} 30. Rc5 {[%clk 0:01:07.8]} 30... Rb8
{[%clk 0:01:49.5]} 31. Ng4 {[%clk 0:01:02.9]} 31... Bd4 {[%clk 0:01:47.6]} 32.
Rc7 {[%clk 0:00:55.4]} 32... Ra8 {[%clk 0:01:41.5]} 33. Rd7 {[%clk 0:00:53.7]}
33... Bb6 {[%clk 0:01:32.6]} 34. Ne3 {[%clk 0:00:40.3]} 34... Rxa3 {[%clk
0:01:28.7]} 35. Nd5 {[%clk 0:00:40.3]} 35... Bxf2 {[%clk 0:01:27.5]} 36. Rd8+
{[%clk 0:00:31.3]} 36... Kh7 {[%clk 0:01:27.1]} 37. Rc1 {[%clk 0:00:31.7]} 37...
Ra2 {[%clk 0:01:26.3]} 38. Rcc8 {[%clk 0:00:21.2]} 38... Rxd2 {[%clk 0:01:15.3]}
39. Rh8+ {[%clk 0:00:09.5]} 39... Kg6 {[%clk 0:01:15.2]} 40. Nf4+ {[%clk
0:00:09.3]} 40... Kf6 {[%clk 0:01:14.9]} 41. Nd5+ {[%clk 0:00:03]} 41... Ke5
{[%clk 0:01:13.9]} 0-1

[Event "*** Titled Tuesday Blitz"]
[Site "Chess.com"]
[Date "2020.04.07"]
[Round "2"]
[White "AlphaZ3r0"]
[Black "suyu28"]
[Result "0-1"]
[WhiteElo "2257"]
[BlackElo "2490"]
[TimeControl "180+1"]
[EndTime "13:18:28 PDT"]
[Termination "suyu28 won on time"]

1. Nf3 {[%clk 0:02:03.2]} 1... d5 {[%clk 0:02:58]} 2. c4 {[%clk 0:01:59.5]} 2...
c6 {[%clk 0:02:58]} 3. g3 {[%clk 0:01:53.9]} 3... Nf6 {[%clk 0:02:57.6]} 4. Bg2
{[%clk 0:01:54.4]} 4... Bg4 {[%clk 0:02:57.1]} 5. O-O {[%clk 0:01:53.7]} 5... e6
{[%clk 0:02:55.5]} 6. cxd5 {[%clk 0:01:53]} 6... exd5 {[%clk 0:02:55.5]} 7. d3
{[%clk 0:01:52.1]} 7... Nbd7 {[%clk 0:02:54.5]} 8. h3 {[%clk 0:01:52.4]} 8...
Bh5 {[%clk 0:02:54]} 9. Nc3 {[%clk 0:01:52.3]} 9... Bc5 {[%clk 0:02:53.4]} 10.
Qc2 {[%clk 0:01:38.8]} 10... O-O {[%clk 0:02:52.4]} 11. e4 {[%clk 0:01:36.4]}
11... dxe4 {[%clk 0:02:45.3]} 12. dxe4 {[%clk 0:01:37.3]} 12... Re8 {[%clk
0:02:38]} 13. Bg5 {[%clk 0:01:06.9]} 13... h6 {[%clk 0:02:36.6]} 14. Bf4 {[%clk
0:01:03.5]} 14... Bg6 {[%clk 0:02:36.4]} 15. Nh4 {[%clk 0:01:01.2]} 15... Bh7
{[%clk 0:02:34.3]} 16. Nf5 {[%clk 0:00:59.7]} 16... Bxf5 {[%clk 0:02:30.8]} 17.
exf5 {[%clk 0:01:00.6]} 17... Nh5 {[%clk 0:02:30.5]} 18. Bd2 {[%clk 0:00:55.6]}
18... Nxg3 {[%clk 0:02:27.6]} 19. Rfd1 {[%clk 0:00:41.9]} 19... Ne2+ {[%clk
0:02:21.1]} 20. Kf1 {[%clk 0:00:30.3]} 20... Nd4 {[%clk 0:02:10.1]} 21. Qd3
{[%clk 0:00:28.3]} 21... Ne5 {[%clk 0:02:09.6]} 22. Qg3 {[%clk 0:00:27.1]} 22...
Nxf5 {[%clk 0:01:53.5]} 23. Qf4 {[%clk 0:00:16.3]} 23... Qc8 {[%clk 0:01:37.5]}
24. Ne4 {[%clk 0:00:15.7]} 24... Bf8 {[%clk 0:01:35.7]} 25. Bc3 {[%clk
0:00:15.5]} 25... Ng6 {[%clk 0:01:27.9]} 26. Qg4 {[%clk 0:00:14.6]} 26... Nfh4
{[%clk 0:01:16.1]} 27. Bh1 {[%clk 0:00:12.3]} 27... f5 {[%clk 0:01:05.8]} 28.
Nf6+ {[%clk 0:00:02.5]} 28... gxf6 {[%clk 0:01:05.9]} 29. Qg3 {[%clk 0:00:02.2]}
29... f4 {[%clk 0:01:00.8]} 30. Qg1 {[%clk 0:00:01.3]} 30... Qxh3+ {[%clk
0:01:00.3]} 0-1

[Event "*** Titled Tuesday Blitz"]
[Site "Chess.com"]
[Date "2020.04.07"]
[Round "2"]
[White "MikeSailer"]
[Black "Semen16"]
[Result "0-1"]
[WhiteElo "2043"]
[BlackElo "2407"]
[TimeControl "180+1"]
[EndTime "13:18:28 PDT"]
[Termination "Semen16 won by checkmate"]

1. d4 {[%clk 0:03:00.9]} 1... d5 {[%clk 0:02:59.2]} 2. Bf4 {[%clk 0:03:01.2]}
2... Nf6 {[%clk 0:02:58.6]} 3. e3 {[%clk 0:03:01.7]} 3... c5 {[%clk 0:02:58.4]}
4. Nf3 {[%clk 0:03:01.5]} 4... Nc6 {[%clk 0:02:56.9]} 5. c3 {[%clk 0:03:01.4]}
5... Qb6 {[%clk 0:02:56.7]} 6. Qb3 {[%clk 0:03:00.4]} 6... c4 {[%clk 0:02:56.8]}
7. Qc2 {[%clk 0:03:00.4]} 7... Bf5 {[%clk 0:02:56.6]} 8. Qc1 {[%clk 0:03:00.5]}
8... h6 {[%clk 0:02:55.1]} 9. Be2 {[%clk 0:03:00.3]} 9... e6 {[%clk 0:02:55]}
10. h3 {[%clk 0:03:00.4]} 10... Be7 {[%clk 0:02:52.6]} 11. O-O {[%clk
0:02:59.9]} 11... O-O {[%clk 0:02:52.7]} 12. Nbd2 {[%clk 0:02:58.7]} 12... Bg6
{[%clk 0:02:51.7]} 13. Ne5 {[%clk 0:02:58]} 13... Nxe5 {[%clk 0:02:51.1]} 14.
Bxe5 {[%clk 0:02:58.3]} 14... Qc6 {[%clk 0:02:28]} 15. Bf3 {[%clk 0:02:50.3]}
15... b5 {[%clk 0:02:25.4]} 16. a3 {[%clk 0:02:43.1]} 16... a5 {[%clk
0:02:24.4]} 17. Re1 {[%clk 0:02:42.1]} 17... Ne4 {[%clk 0:02:11.8]} 18. Nxe4
{[%clk 0:02:14.8]} 18... dxe4 {[%clk 0:02:11.3]} 19. Be2 {[%clk 0:02:08.8]}
19... Rfc8 {[%clk 0:02:06.2]} 20. Qc2 {[%clk 0:02:01.4]} 20... b4 {[%clk
0:02:00.4]} 21. axb4 {[%clk 0:02:00.7]} 21... axb4 {[%clk 0:01:59.2]} 22. Rxa8
{[%clk 0:01:59.4]} 22... Qxa8 {[%clk 0:01:43.1]} 23. cxb4 {[%clk 0:01:54.8]}
23... Bxb4 {[%clk 0:01:44]} 24. Rc1 {[%clk 0:01:53.2]} 24... c3 {[%clk
0:01:43.9]} 25. bxc3 {[%clk 0:01:42.4]} 25... Rxc3 {[%clk 0:01:42.1]} 26. Qb1
{[%clk 0:01:35.8]} 26... Qc6 {[%clk 0:01:36]} 27. Rxc3 {[%clk 0:01:34.6]} 27...
Qxc3 {[%clk 0:01:35.7]} 28. Qa2 {[%clk 0:01:21.6]} 28... Qe1+ {[%clk 0:01:33.4]}
29. Bf1 {[%clk 0:01:21.3]} 29... Kh7 {[%clk 0:01:30.3]} 30. Qe2 {[%clk
0:01:10.9]} 30... Qb1 {[%clk 0:01:25.2]} 31. g3 {[%clk 0:01:03.8]} 31... Bf5
{[%clk 0:01:18.7]} 32. Kg2 {[%clk 0:01:01.5]} 32... f6 {[%clk 0:01:17.3]} 33.
Bc7 {[%clk 0:00:55.9]} 33... Qc1 {[%clk 0:01:09.4]} 34. Qc4 {[%clk 0:00:53.3]}
34... Qb1 {[%clk 0:01:02.8]} 35. Be2 {[%clk 0:00:50.6]} 35... Bxh3+ {[%clk
0:00:39.1]} 36. Kxh3 {[%clk 0:00:26.6]} 36... Qh1+ {[%clk 0:00:38.1]} 37. Kg4
{[%clk 0:00:26.2]} 37... h5+ {[%clk 0:00:38.6]} 38. Kf4 {[%clk 0:00:20]} 38...
g5# {[%clk 0:00:38.9]} 0-1

[Event "*** Titled Tuesday Blitz"]
[Site "Chess.com"]
[Date "2020.04.07"]
[Round "2"]
[White "Icewizard1"]
[Black "Evhen_Taranenko"]
[Result "1-0"]
[WhiteElo "2870"]
[BlackElo "2375"]
[TimeControl "180+1"]
[EndTime "13:18:29 PDT"]
[Termination "Icewizard1 won on time"]

1. Nf3 {[%clk 0:03:00.7]} 1... c5 {[%clk 0:02:58.9]} 2. e4 {[%clk 0:02:57.7]}
2... d6 {[%clk 0:02:56.3]} 3. d4 {[%clk 0:02:56.1]} 3... cxd4 {[%clk 0:02:56.2]}
4. Nxd4 {[%clk 0:02:56.7]} 4... Nf6 {[%clk 0:02:56.2]} 5. Nc3 {[%clk 0:02:56.1]}
5... a6 {[%clk 0:02:56.4]} 6. f3 {[%clk 0:02:56.1]} 6... e6 {[%clk 0:02:56.2]}
7. Be3 {[%clk 0:02:55.6]} 7... b5 {[%clk 0:02:55.7]} 8. Qd2 {[%clk 0:02:55.8]}
8... Bb7 {[%clk 0:02:55.5]} 9. O-O-O {[%clk 0:02:55.8]} 9... Nbd7 {[%clk
0:02:55.9]} 10. g4 {[%clk 0:02:49.3]} 10... Nb6 {[%clk 0:02:55.2]} 11. g5 {[%clk
0:02:46.1]} 11... Nfd7 {[%clk 0:02:54.7]} 12. h4 {[%clk 0:02:45]} 12... Rc8
{[%clk 0:02:54.4]} 13. a3 {[%clk 0:02:38.8]} 13... Ne5 {[%clk 0:02:50.7]} 14.
Bf2 {[%clk 0:02:34.6]} 14... Nec4 {[%clk 0:02:49]} 15. Qe1 {[%clk 0:02:32.5]}
15... Qc7 {[%clk 0:02:44.8]} 16. f4 {[%clk 0:02:30.6]} 16... Nxa3 {[%clk
0:02:37.9]} 17. bxa3 {[%clk 0:02:27.5]} 17... Qxc3 {[%clk 0:02:36.7]} 18. Qxc3
{[%clk 0:02:28.1]} 18... Rxc3 {[%clk 0:02:36.3]} 19. Nxb5 {[%clk 0:02:26.9]}
19... axb5 {[%clk 0:02:31.7]} 20. Bxb6 {[%clk 0:02:27.2]} 20... Rxa3 {[%clk
0:02:30.8]} 21. Bxb5+ {[%clk 0:02:23.9]} 21... Ke7 {[%clk 0:02:26.5]} 22. e5
{[%clk 0:02:24.2]} 22... Ra1+ {[%clk 0:02:05.5]} 23. Kb2 {[%clk 0:02:20.4]}
23... Rxd1 {[%clk 0:01:57.9]} 24. Rxd1 {[%clk 0:02:21.3]} 24... d5 {[%clk
0:01:50.4]} 25. Ra1 {[%clk 0:02:21.2]} 25... f6 {[%clk 0:00:49.1]} 26. Ra7
{[%clk 0:02:20.7]} 26... fxe5 {[%clk 0:00:47.7]} 27. fxe5 {[%clk 0:02:17.8]}
27... Kf7 {[%clk 0:00:42.4]} 28. Rxb7+ {[%clk 0:02:18]} 28... Kg6 {[%clk
0:00:43]} 29. Bd3+ {[%clk 0:02:13.8]} 29... Kh5 {[%clk 0:00:41.7]} 30. Rf7
{[%clk 0:02:11]} 30... Kxh4 {[%clk 0:00:34.3]} 31. Be3 {[%clk 0:02:07]} 31... g6
{[%clk 0:00:22.9]} 32. Kc3 {[%clk 0:02:02.2]} 32... Ba3 {[%clk 0:00:20]} 33. Kb3
{[%clk 0:01:57.1]} 33... Bf8 {[%clk 0:00:12.4]} 34. Bb5 {[%clk 0:01:52.2]} 34...
h6 {[%clk 0:00:09.2]} 35. Bd7 {[%clk 0:01:45.1]} 35... hxg5 {[%clk 0:00:07.9]}
36. Bxe6 {[%clk 0:01:44.1]} 36... g4 {[%clk 0:00:08.1]} 37. Rf4 {[%clk
0:01:43.1]} 37... g5 {[%clk 0:00:01.3]} 38. Rxg4+ {[%clk 0:01:43]} 38... Kh5
{[%clk 0:00:01.7]} 39. Rxg5+ {[%clk 0:01:42.8]} 1-0

[Event "*** Titled Tuesday Blitz"]
[Site "Chess.com"]
[Date "2020.04.07"]
[Round "2"]
[White "WiniVidiVici"]
[Black "Benjoneliere44"]
[Result "1-0"]
[WhiteElo "2756"]
[BlackElo "2510"]
[TimeControl "180+1"]
[EndTime "13:18:31 PDT"]
[Termination "WiniVidiVici won by resignation"]

1. e4 {[%clk 0:03:00.9]} 1... c5 {[%clk 0:02:59.4]} 2. Nf3 {[%clk 0:02:59.9]}
2... d6 {[%clk 0:02:59.5]} 3. d4 {[%clk 0:02:59.6]} 3... cxd4 {[%clk 0:03:00.4]}
4. Nxd4 {[%clk 0:03:00.5]} 4... Nf6 {[%clk 0:03:00.8]} 5. Nc3 {[%clk 0:03:00.6]}
5... g6 {[%clk 0:03:00.9]} 6. Be2 {[%clk 0:02:54.6]} 6... Bg7 {[%clk 0:02:42]}
7. Be3 {[%clk 0:02:55]} 7... O-O {[%clk 0:02:40.4]} 8. Qd2 {[%clk 0:02:55.6]}
8... Nc6 {[%clk 0:02:40.3]} 9. O-O-O {[%clk 0:02:54.2]} 9... Ng4 {[%clk
0:02:32.8]} 10. Bxg4 {[%clk 0:02:52.5]} 10... Bxg4 {[%clk 0:02:33.2]} 11. f3
{[%clk 0:02:52.8]} 11... Bd7 {[%clk 0:02:33.1]} 12. h4 {[%clk 0:02:49]} 12...
Ne5 {[%clk 0:02:30]} 13. Qe2 {[%clk 0:02:26.6]} 13... Rc8 {[%clk 0:02:19.6]} 14.
Nb3 {[%clk 0:02:20.9]} 14... a5 {[%clk 0:02:15.1]} 15. a4 {[%clk 0:02:11.9]}
15... Rxc3 {[%clk 0:02:08.4]} 16. bxc3 {[%clk 0:02:11.8]} 16... Qc7 {[%clk
0:02:05.4]} 17. Bd4 {[%clk 0:02:11.1]} 17... h5 {[%clk 0:02:00.9]} 18. f4 {[%clk
0:01:57.6]} 18... Ng4 {[%clk 0:01:45.8]} 19. Bxg7 {[%clk 0:01:49]} 19... Kxg7
{[%clk 0:01:46.7]} 20. Qd2 {[%clk 0:01:45.3]} 20... Kg8 {[%clk 0:01:28.9]} 21.
Kb2 {[%clk 0:01:41.8]} 21... Rc8 {[%clk 0:01:19.9]} 22. e5 {[%clk 0:01:38.7]}
22... Bxa4 {[%clk 0:01:15]} 23. exd6 {[%clk 0:01:38.1]} 23... exd6 {[%clk
0:01:13.9]} 24. Ra1 {[%clk 0:01:33.5]} 24... Bd7 {[%clk 0:00:30.4]} 25. Rxa5
{[%clk 0:01:30]} 25... Be6 {[%clk 0:00:29.6]} 26. Rb5 {[%clk 0:01:22.4]} 26...
Nf6 {[%clk 0:00:22.2]} 27. Re1 {[%clk 0:01:19.9]} 27... Bc4 {[%clk 0:00:17.4]}
28. Rb4 {[%clk 0:01:06.8]} 28... b5 {[%clk 0:00:17.1]} 29. f5 {[%clk 0:00:58.5]}
29... Nd5 {[%clk 0:00:17]} 30. fxg6 {[%clk 0:00:57.3]} 30... fxg6 {[%clk
0:00:17.7]} 31. Re6 {[%clk 0:00:45.4]} 31... Qf7 {[%clk 0:00:10.7]} 32. Rxc4
{[%clk 0:00:42.8]} 32... bxc4 {[%clk 0:00:10.4]} 33. Qxd5 {[%clk 0:00:43.1]} 1-0